fUSD/lending_fUSD_20240524
["ID","MTS","AMOUNT","RATE_DAILY","PERIOD"]
[327858979,1716559942774,-153.11,0.000335,2]
[327858980,1716559942784,-153.11,0.000335,2]
[327858981,1716559942794,-153.11,0.000335,2]
[327858982,1716559942803,-153.11,0.000335,2]
[327858983,1716559942814,-153.11,0.000335,2]
[327858984,1716559942824,-153.11,0.000335,2]
[327858985,1716559942835,-153.11,0.000335,2]
[327858986,1716559942844,-153.11,0.000335,2]
[327858987,1716559942854,-153.11,0.000335,2]
[327858988,1716559942863,-153.11,0.000335,2]
[327858989,1716559942874,-153.11,0.000335,2]
[327858990,1716559942883,-153.11,0.000335,2]
[327858991,1716559942894,-153.11,0.000335,2]
[327858992,1716559942906,-153.11,0.000335,2]
[327858993,1716559942915,-541.73,0.000335,2]
[327858994,1716559942925,-541.73,0.000335,2]
[327858995,1716559942934,-541.73,0.000335,2]
[327858996,1716559942944,-541.73,0.000335,2]
[327858997,1716559942954,-541.73,0.000335,2]
[327858998,1716559942964,-541.73,0.000335,2]
[327858999,1716559942973,-541.73,0.000335,2]
[327859000,1716559942982,-541.73,0.000335,2]
[327859001,1716559942991,-541.73,0.000335,2]
[327859002,1716559943000,-541.73,0.000335,2]
[327859003,1716559943010,-541.73,0.000335,2]
[327859004,1716559943020,-541.73,0.000335,2]
[327859005,1716559943033,-541.73,0.000335,2]
[327859006,1716559943042,-541.73,0.000335,2]
[327859007,1716559943052,-541.73,0.000335,2]
[327859008,1716559943063,-541.73,0.000335,2]
[327859009,1716559943072,-541.73,0.000335,2]
[327859010,1716559943082,-541.73,0.000335,2]
[327859011,1716559943091,-541.73,0.000335,2]
[327859012,1716559943100,-541.73,0.000335,2]
[327859013,1716559943112,-150.0,0.000335,7]
[327859014,1716559943123,-150.0,0.00033548,7]
[327859015,1716559943132,-150.0,0.0003356,120]
[327859016,1716559943142,-6713.626106,0.00033584,2]
[327859017,1716559943151,-604.0,0.00033595,7]
[327859018,1716559943161,-150.0,0.00033623,120]
[327859019,1716559943170,-3723.47110887,0.0003363,7]
[327859020,1716559943179,-1147.77650553,0.0003363,7]
[327859021,1716559943188,-246.94781801,0.0003363,7]
[327859022,1716559943199,-695.66031416,0.0003363,7]
[327859023,1716559943208,-150.0,0.00033636,7]
[327859024,1716559943218,-745.0,0.00033663,2]
[327859025,1716559943227,-586.0,0.00033663,2]
[327859026,1716559943237,-400.0,0.0003367,2]
[327859027,1716559943246,-151.02374941,0.0003367,7]
[327859028,1716559943255,-209.2924835,0.00033689,7]
[327859029,1716559943264,-155.32441655,0.00033696,4]
[327859030,1716559943274,-500.0,0.00033698,6]
[327859031,1716559943283,-150.0,0.00033725,7]
[327859032,1716559943292,-150.0,0.00033725,7]
[327859033,1716559943302,-387.0,0.00033766,2]
[327859034,1716559943311,-160.07720588,0.00033793,7]
[327859035,1716559943321,-150.0,0.00033814,7]
[327859036,1716559943330,-150.0,0.00033815,120]
[327859037,1716559943339,-155.71753786,0.00033851,7]
[327859038,1716559943349,-152.98488692,0.00033878,7]
[327859039,1716559943359,-150.0,0.00033903,7]
[327859040,1716559943368,-304.886963,0.00033959,2]
[327859041,1716559943515,-3533.23679341,0.00033982,2]
[327859042,1716559943540,-150.0,0.00033982,3]
[327859043,1716559943550,-516.06127964,0.00033982,15]
[327859044,1716559943559,-150.0,0.00033982,2]
[327859045,1716559943568,-3000.0,0.00033982,3]
[327859046,1716559943577,-2467.75747213,0.00033982,15]
[327859047,1716559943586,-10631.74938423,0.00033982,10]
[327859048,1716559943595,-52486.62972891,0.00033982,10]
[327859049,1716559943605,-40872.97831681,0.00033982,29]
[327859050,1716559943614,-2001.0540925,0.00033982,2]
[327859051,1716559943624,-1551.9917856,0.00033982,30]
[327859052,1716559943634,-800.5151646,0.00033982,60]
[327859053,1716559943643,-1000.0,0.00033982,30]
[327859054,1716559943652,-1000.0,0.00033982,30]
[327859055,1716559943661,-1000.0,0.00033982,30]
[327859056,1716559943670,-1000.0,0.00033982,30]
[327859057,1716559943680,-1000.0,0.00033982,30]
[327859058,1716559943689,-262.78035472,0.00033982,30]
[327859059,1716559943701,-1000.0,0.00033982,30]
[327859060,1716559943711,-1000.0,0.00033982,30]
[327859061,1716559943719,-1000.0,0.00033982,30]
[327859062,1716559943728,-1000.0,0.00033982,30]
[327859063,1716559943738,-1000.0,0.00033982,30]
[327859064,1716559943747,-187.56761929,0.00033982,30]
[327859065,1716559943756,-189.0,0.00033982,30]
[327859066,1716559943765,-189.0,0.00033982,30]
[327859067,1716559943775,-189.0,0.00033982,30]
[327859068,1716559943784,-200.0,0.00033982,30]
[327859069,1716559943793,-179.0,0.00033982,30]
[327859070,1716559943803,-1008.33834312,0.00033982,30]
[327859071,1716559943812,-1113.52,0.00033982,12]
[327859072,1716559943822,-2000.0,0.00033982,30]
[327859073,1716559943831,-1328.699999,0.00033982,30]
[327859074,1716559943841,-50000.0,0.00033982,20]
[327859075,1716559943850,-50000.0,0.00033982,21]
[327859076,1716559943859,-50000.0,0.00033982,22]
[327859077,1716559943868,-50000.0,0.00033982,23]
[327859078,1716559943877,-50000.0,0.00033982,24]
[327859079,1716559943888,-50000.0,0.00033982,25]
[327859080,1716559943898,-50000.0,0.00033982,26]
[327859081,1716559943907,-50000.0,0.00033982,27]
[327859082,1716559943917,-50000.0,0.00033982,28]
[327859083,1716559943927,-50000.0,0.00033982,29]
[327859084,1716559943936,-1902.01,0.00033982,120]
[327859085,1716559943948,-247.8424225,0.00033982,90]
[327859086,1716559943958,-480.0025698,0.00033982,30]
[327859087,1716559943967,-358.74201293,0.00033982,30]
[327859088,1716559943976,-1508.70461126,0.00033982,30]
[327859089,1716559943985,-829.16134189,0.00033982,30]
[327859090,1716559943994,-404.82417154,0.00033982,120]
[327859091,1716559944003,-694.3336456,0.00033982,30]
[327859092,1716559944013,-346.90914684,0.00033982,30]
[327859093,1716559944026,-179.10501834,0.00033982,120]
[327859094,1716559944035,-427.66642961,0.00033982,30]
[327859095,1716559944045,-366.63137815,0.00033982,30]
[327859096,1716559944054,-366.09437604,0.00033982,30]
[327859097,1716559944063,-982.43068214,0.00033982,120]
[327859098,1716559944075,-812.16477911,0.00033982,30]
[327859099,1716559944084,-1359.01257644,0.00033982,120]
[327859100,1716559944093,-819.93301044,0.00033982,30]
[327859101,1716559944107,-655.62250119,0.00033982,30]
[327859102,1716559944118,-232.84981048,0.00033982,120]
[327859103,1716559944127,-1302.76688852,0.00033982,120]
[327859104,1716559944136,-847.46178856,0.00033982,60]
[327859105,1716559944145,-196.18872152,0.00033982,30]
[327859106,1716559944154,-1429.28215632,0.00033982,30]
[327859107,1716559944165,-912.40823903,0.00033982,30]
[327859108,1716559944174,-330.97510837,0.00033982,30]
[327859109,1716559944184,-789.75191387,0.00033982,30]
[327859110,1716559944193,-282.72008618,0.00033982,120]
[327859111,1716559944207,-267.9285031,0.00033982,120]
[327859112,1716559944216,-768.58952501,0.00033982,120]
[327859113,1716559944225,-479.85007251,0.00033982,30]
[327859114,1716559944235,-2011.19127126,0.00033982,120]
[327859115,1716559944245,-557.8792836,0.00033982,120]
[327859116,1716559944254,-1304.17489059,0.00033982,120]
[327859117,1716559944264,-1096.90035527,0.00033982,30]
[327859118,1716559944273,-304.73111459,0.00033982,120]
[327859119,1716559944283,-839.26332864,0.00033982,30]
[327859120,1716559944292,-308.74329734,0.00033982,2]
[327859121,1716559944301,-939.09214934,0.00033982,120]
[327859122,1716559944311,-191.83464319,0.00033982,30]
[327859123,1716559944320,-292.84149006,0.00033982,120]
[327859124,1716559944329,-195.17590072,0.00033982,30]
[327859125,1716559944338,-1008.77008964,0.00033982,120]
[327859126,1716559944347,-251.26522882,0.00033982,30]
[327859127,1716559944357,-356.15816774,0.00033982,120]
[327859128,1716559944366,-226.20007902,0.00033982,120]
[327859129,1716559944375,-2204.03356784,0.00033982,60]
[327859130,1716559944384,-1417.01572496,0.00033982,30]
[327859131,1716559944394,-809.9579182,0.00033982,30]
[327859132,1716559944403,-313.39427204,0.00033982,120]
[327859133,1716559944412,-1189.96912533,0.00033982,120]
[327859134,1716559944421,-535.10274618,0.00033982,120]
[327859135,1716559944431,-812.95109436,0.00033982,30]
[327859136,1716559944440,-298.36792609,0.00033982,30]
[327859137,1716559944449,-1382.46218342,0.00033982,30]
[327859138,1716559944458,-1086.07612377,0.00033982,30]
[327859139,1716559944468,-1318.4080165,0.00033982,120]
[327859140,1716559944477,-998.3564519,0.00033982,120]
[327859141,1716559944487,-451.3716,0.00033982,30]
[327859142,1716559944496,-4309.59255064,0.00033982,120]
[327859143,1716559944505,-5922.6922391,0.00033982,30]
[327859144,1716559944514,-868.09257336,0.00033982,120]
[327859145,1716559944524,-16801.65549752,0.00033982,30]
[327859146,1716559944533,-15877.68516233,0.00033982,15]
[327859147,1716559944542,-325.92527891,0.00033982,7]
[327859148,1716559944551,-2543.43893165,0.00033982,7]
[327859149,1716559944561,-47485.35001064,0.00033982,120]
[327859150,1716559944570,-176.95084702,0.00033982,120]
[327859151,1716559944581,-177.78107533,0.00033982,7]
[327859152,1716559944591,-222.53621646,0.00033982,7]
[327859153,1716559944600,-994.60724946,0.00033982,120]
[327859154,1716559944609,-155.780936,0.00033982,30]
[327859155,1716559944619,-43905.0,0.00033982,4]
[327859156,1716559944629,-3206.0,0.00033982,4]
[327859157,1716559944639,-3290.0,0.00033982,4]
[327859158,1716559944648,-160197.0,0.00033982,4]
[327859159,1716559944658,-150.0,0.00033982,30]
[327859160,1716559944667,-1000.0,0.00033982,30]
[327859161,1716559944677,-1000.0,0.00033982,30]
[327859162,1716559944687,-1000.0,0.00033982,30]
[327859163,1716559944696,-1000.0,0.00033982,30]
[327859164,1716559944708,-1000.0,0.00033982,30]
[327859165,1716559944717,-1000.0,0.00033982,30]
[327859166,1716559944727,-1000.0,0.00033982,30]
[327859167,1716559944736,-1000.0,0.00033982,30]
[327859168,1716559944747,-1000.0,0.00033982,30]
[327859169,1716559944757,-1000.0,0.00033982,30]
[327859170,1716559944766,-1477.700911,0.00033982,30]
[327859171,1716559944775,-3723.47110887,0.00033984,7]
[327859172,1716559944785,-1147.77650553,0.00033984,7]
[327859173,1716559944795,-246.94781801,0.00033984,7]
[327859174,1716559944805,-695.66031416,0.00033984,7]
[327859175,1716559944814,-3373.30305917,0.0003399,2]
[327859176,1716559944824,-150.0,0.00033991,7]
[327859177,1716559944833,-500.75,0.00034,2]
[327859178,1716559944842,-1000.0,0.00034,3]
[327859179,1716559944851,-1000.0,0.00034,3]
[327859180,1716559944861,-1000.0,0.00034,3]
[327859181,1716559944870,-1000.0,0.00034,3]
[327859182,1716559944880,-1000.0,0.00034,3]
[327859183,1716559944889,-1000.0,0.00034,3]
[327859184,1716559944898,-1000.0,0.00034,3]
[327859185,1716559944907,-1000.0,0.00034,3]
[327859186,1716559944917,-1000.0,0.00034,3]
[327859187,1716559944926,-1000.0,0.00034,3]
[327859188,1716559944935,-5867.44438877,0.00034,2]
[327859189,1716559944945,-5088.04,0.00034,30]
[327859190,1716559944956,-13752.46004465,0.00034,10]
[327859191,1716559944966,-2052.1,0.00034,6]
[327859192,1716559944975,-1030.0,0.00034,120]
[327859193,1716559944985,-894.78,0.00034,2]
[327859194,1716559944994,-151.0,0.00034,7]
[327859195,1716559945003,-151.034744,0.00034,23]
[327859196,1716559945013,-153.11,0.00034,2]
[327859197,1716559945024,-153.11,0.00034,2]
[327859198,1716559945036,-153.11,0.00034,2]
[327859199,1716559945045,-153.11,0.00034,2]
[327859200,1716559945055,-153.11,0.00034,2]
[327859201,1716559945065,-153.11,0.00034,2]
[327859202,1716559945075,-153.11,0.00034,2]
[327859203,1716559945085,-153.11,0.00034,2]
[327859204,1716559945095,-153.11,0.00034,2]
[327859205,1716559945107,-153.11,0.00034,2]
[327859206,1716559945118,-153.11,0.00034,2]
[327859207,1716559945128,-153.11,0.00034,2]
[327859208,1716559945138,-153.11,0.00034,2]
[327859209,1716559945148,-153.11,0.00034,2]
[327859210,1716559945158,-153.11,0.00034,2]
[327859211,1716559945168,-153.11,0.00034,2]
[327859212,1716559945177,-153.11,0.00034,2]
[327859213,1716559945187,-153.11,0.00034,2]
[327859214,1716559945196,-153.11,0.00034,2]
[327859215,1716559945210,-541.73,0.00034,2]
[327859216,1716559945222,-541.73,0.00034,2]
[327859217,1716559945232,-541.73,0.00034,2]
[327859218,1716559945242,-541.73,0.00034,2]
[327859219,1716559945251,-541.73,0.00034,2]
[327859220,1716559945261,-541.73,0.00034,2]
[327859221,1716559945270,-541.73,0.00034,2]
[327859222,1716559945280,-541.73,0.00034,2]
[327859223,1716559945290,-541.73,0.00034,2]
[327859224,1716559945299,-541.73,0.00034,2]
[327859225,1716559945309,-541.73,0.00034,2]
[327859226,1716559945319,-541.73,0.00034,2]
[327859227,1716559945328,-541.73,0.00034,2]
[327859228,1716559945337,-541.73,0.00034,2]
[327859229,1716559945346,-541.73,0.00034,2]
[327859230,1716559945356,-541.73,0.00034,2]
[327859231,1716559945365,-541.73,0.00034,2]
[327859232,1716559945375,-541.73,0.00034,2]
[327859233,1716559945384,-541.73,0.00034,2]
[327859234,1716559945393,-541.73,0.00034,2]
[327859235,1716559945403,-150.0,0.00034,8]
[327859236,1716559945412,-745.0,0.0003401,2]
[327859237,1716559945422,-586.0,0.0003401,2]
[327859238,1716559945431,-150.0,0.00034021,7]
[327859239,1716559945441,-152.07462585,0.00034029,7]
[327859240,1716559945454,-150.0,0.0003408,7]
[327859241,1716559945463,-150.0,0.0003408,7]
[327859242,1716559945473,-500.0,0.0003413,10]
[327859243,1716559945482,-500.0,0.0003413,10]
[327859244,1716559945492,-387.0,0.00034137,2]
[327859245,1716559945502,-166.99392,0.0003416,4]
[327859246,1716559945511,-150.0,0.00034169,7]
[327859247,1716559945521,-183.991154,0.00034188,7]
[327859248,1716559945530,-183.991154,0.00034188,7]
[327859249,1716559945540,-1490.87,0.00034189,30]
[327859250,1716559945550,-1490.87,0.00034189,30]
[327859251,1716559945560,-1490.87,0.00034189,30]
[327859252,1716559945569,-1490.87,0.00034189,30]
[327859253,1716559945579,-214793.86143964,0.000342,7]
[327859254,1716559945588,-151.0,0.000342,7]
[327859255,1716559945597,-151.0,0.000342,7]
[327859256,1716559945607,-168.843148,0.000342,7]
[327859257,1716559945617,-151.0,0.000342,7]
[327859258,1716559945627,-151.0,0.000342,7]
[327859259,1716559945637,-151.0,0.000342,7]
[327859260,1716559945646,-153.27574,0.000342,7]
[327859261,1716559945656,-151.0,0.000342,7]
[327859262,1716559945665,-343.122701,0.000342,7]
[327859263,1716559945676,-343.122701,0.000342,7]
[327859264,1716559945686,-214.449553,0.000342,7]
[327859265,1716559945696,-214.449553,0.000342,7]
[327859266,1716559945710,-151.0,0.000342,7]
[327859267,1716559945720,-333.570508,0.000342,7]
[327859268,1716559945729,-151.0,0.000342,7]
[327859269,1716559945739,-333.570508,0.000342,7]
[327859270,1716559945748,-257.054168,0.000342,7]
[327859271,1716559945758,-151.0,0.000342,7]
[327859272,1716559945767,-257.054168,0.000342,7]
[327859273,1716559945777,-151.0,0.000342,7]
[327859274,1716559945786,-151.0,0.000342,7]
[327859275,1716559945796,-151.0,0.000342,7]
[327859276,1716559945805,-151.0,0.000342,7]
[327859277,1716559945816,-151.0,0.000342,7]
[327859278,1716559945826,-151.0,0.000342,7]
[327859279,1716559945837,-151.0,0.000342,7]
[327859280,1716559945846,-151.0,0.000342,7]
[327859281,1716559945857,-151.0,0.000342,7]
[327859282,1716559945866,-173.224286,0.000342,7]
[327859283,1716559945875,-173.224286,0.000342,7]
[327859284,1716559945886,-151.0,0.000342,7]
[327859285,1716559945896,-241.291335,0.000342,7]
[327859286,1716559945906,-403.3146,0.000342,7]
[327859287,1716559945916,-241.291335,0.000342,7]
[327859288,1716559945927,-403.3146,0.000342,7]
[327859289,1716559945937,-152.350447,0.000342,7]
[327859290,1716559945947,-151.0,0.000342,7]
[327859291,1716559945959,-151.0,0.000342,7]
[327859292,1716559945968,-151.0,0.000342,7]
[327859293,1716559945977,-151.0,0.000342,7]
[327859294,1716559945986,-163.667635,0.000342,7]
[327859295,1716559945996,-151.0,0.000342,7]
[327859296,1716559946006,-173.327064,0.000342,7]
[327859297,1716559946015,-151.0,0.000342,7]
[327859298,1716559946031,-163.667635,0.000342,7]
[327859299,1716559946040,-173.327064,0.000342,7]
[327859300,1716559946050,-151.0,0.000342,7]
[327859301,1716559946059,-665.597493,0.000342,7]
[327859302,1716559946070,-665.597493,0.000342,7]
[327859303,1716559946079,-218.004388,0.000342,7]
[327859304,1716559946089,-151.0,0.000342,7]
[327859305,1716559946098,-218.004388,0.000342,7]
[327859306,1716559946109,-485.442264,0.000342,7]
[327859307,1716559946118,-151.0,0.000342,7]
[327859308,1716559946127,-220.735345,0.000342,7]
[327859309,1716559946136,-485.442264,0.000342,7]
[327859310,1716559946146,-657.313467,0.000342,7]
[327859311,1716559946157,-151.0,0.000342,7]
[327859312,1716559946167,-220.735345,0.000342,7]
[327859313,1716559946183,-307.161433,0.000342,7]
[327859314,1716559946197,-657.313467,0.000342,7]
[327859315,1716559946208,-307.161433,0.000342,7]
[327859316,1716559946218,-151.0,0.000342,7]
[327859317,1716559946227,-151.0,0.000342,7]
[327859318,1716559946237,-247.612435,0.000342,7]
[327859319,1716559946246,-512.870799,0.000342,7]
[327859320,1716559946256,-247.612435,0.000342,7]
[327859321,1716559946266,-512.870799,0.000342,7]
[327859322,1716559946276,-225.638764,0.000342,7]
[327859323,1716559946285,-225.638764,0.000342,7]
[327859324,1716559946295,-298.415414,0.000342,7]
[327859325,1716559946307,-298.415414,0.000342,7]
[327859326,1716559946317,-151.0,0.000342,7]
[327859327,1716559946326,-151.0,0.000342,7]
[327859328,1716559946335,-151.0,0.000342,7]
[327859329,1716559946345,-151.0,0.000342,7]
[327859330,1716559946355,-151.0,0.000342,7]
[327859331,1716559946364,-151.0,0.000342,7]
[327859332,1716559946374,-151.0,0.000342,7]
[327859333,1716559946383,-151.0,0.000342,7]
[327859334,1716559946392,-151.0,0.000342,7]
[327859335,1716559946401,-151.0,0.000342,7]
[327859336,1716559946413,-151.0,0.000342,7]
[327859337,1716559946422,-214.68,0.000342,7]
[327859338,1716559946432,-151.0,0.000342,7]
[327859339,1716559946444,-151.0,0.000342,7]
[327859340,1716559946455,-236.938807,0.000342,7]
[327859341,1716559946465,-151.0,0.000342,7]
[327859342,1716559946474,-164.206659,0.000342,7]
[327859343,1716559946483,-151.0,0.000342,7]
[327859344,1716559946493,-151.0,0.000342,7]
[327859345,1716559946503,-4327.465765,0.000342,7]
[327859346,1716559946514,-536.630205,0.00034247,14]
[327859347,1716559946524,-150.0,0.00034258,7]
[327859348,1716559946534,-2000.0,0.000343,12]
[327859349,1716559946544,-150.0,0.00034317,7]
[327859350,1716559946553,-151.0,0.00034338,7]
[327859351,1716559946563,-151.0,0.00034338,7]
[327859352,1716559946572,-3723.47110887,0.00034338,7]
[327859353,1716559946581,-1147.77650553,0.00034338,7]
[327859354,1716559946592,-246.94781801,0.00034338,7]
[327859355,1716559946601,-695.66031416,0.00034338,7]
[327859356,1716559946611,-150.0,0.00034346,7]
[327859357,1716559946621,-745.0,0.00034357,2]
[327859358,1716559946630,-586.0,0.00034357,2]
[327859359,1716559946640,-49766.26901357,0.00034361,2]
[327859360,1716559946650,-400.0,0.0003437,2]
[327859361,1716559946660,-5020.81023,0.00034395,30]
[327859362,1716559946669,-13542.93846171,0.000344,2]
[327859363,1716559946680,-153.11,0.000344,2]
[327859364,1716559946689,-153.11,0.000344,2]
[327859365,1716559946701,-153.11,0.000344,2]
[327859366,1716559946711,-153.11,0.000344,2]
[327859367,1716559946720,-153.11,0.000344,2]
[327859368,1716559946730,-153.11,0.000344,2]
[327859369,1716559946739,-153.11,0.000344,2]
[327859370,1716559946748,-153.11,0.000344,2]
[327859371,1716559946758,-153.11,0.000344,2]
[327859372,1716559946768,-153.11,0.000344,2]
[327859373,1716559946777,-153.11,0.000344,2]
[327859374,1716559946786,-153.11,0.000344,2]
[327859375,1716559946795,-153.11,0.000344,2]
[327859376,1716559946804,-153.11,0.000344,2]
[327859377,1716559946814,-153.11,0.000344,2]
[327859378,1716559946823,-153.11,0.000344,2]
[327859379,1716559946833,-153.11,0.000344,2]
[327859380,1716559946843,-153.11,0.000344,2]
[327859381,1716559946852,-153.11,0.000344,2]
[327859382,1716559946861,-541.73,0.000344,2]
[327859383,1716559946871,-541.73,0.000344,2]
[327859384,1716559946881,-541.73,0.000344,2]
[327859385,1716559946890,-541.73,0.000344,2]
[327859386,1716559946900,-541.73,0.000344,2]
[327859387,1716559946909,-541.73,0.000344,2]
[327859388,1716559946919,-541.73,0.000344,2]
[327859389,1716559946929,-541.73,0.000344,2]
[327859390,1716559946939,-541.73,0.000344,2]
[327859391,1716559946948,-541.73,0.000344,2]
[327859392,1716559946960,-541.73,0.000344,2]
[327859393,1716559946969,-541.73,0.000344,2]
[327859394,1716559946978,-541.73,0.000344,2]
[327859395,1716559946988,-541.73,0.000344,2]
[327859396,1716559946997,-541.73,0.000344,2]
[327859397,1716559947007,-541.73,0.000344,2]
[327859398,1716559947016,-541.73,0.000344,2]
[327859399,1716559947029,-541.73,0.000344,2]
[327859400,1716559947038,-541.73,0.000344,2]
[327859401,1716559947048,-541.73,0.000344,2]
[327859402,1716559947057,-150.0,0.00034427,120]
[327859403,1716559947067,-150.0,0.00034435,7]
[327859404,1716559947076,-633.30239,0.0003444,10]
[327859405,1716559947086,-1208.0,0.00034446,30]
[327859406,1716559947095,-1490.87,0.00034462,30]
[327859407,1716559947106,-1490.87,0.00034462,30]
[327859408,1716559947115,-7000.0,0.00034463,7]
[327859409,1716559947125,-151.0,0.00034463,7]
[327859410,1716559947134,-151.0,0.00034463,7]
[327859411,1716559947144,-150.0,0.000345,8]
[327859412,1716559947153,-387.0,0.00034508,2]
[327859413,1716559947163,-150.0,0.00034524,7]
[327859414,1716559947172,-150.0,0.00034548,10]
[327859415,1716559947181,-500.0,0.00034559,120]
[327859416,1716559947190,-400.0,0.0003457,2]
[327859417,1716559947200,-1000.0,0.0003457,2]
[327859418,1716559947209,-183.991154,0.000346,7]
[327859419,1716559947219,-183.991154,0.000346,7]
[327859420,1716559947228,-734.0,0.000346,23]
[327859421,1716559947238,-151.0,0.000346,7]
[327859422,1716559947247,-151.0,0.000346,7]
[327859423,1716559947257,-151.0,0.000346,7]
[327859424,1716559947267,-151.0,0.000346,7]
[327859425,1716559947276,-151.0,0.000346,7]
[327859426,1716559947286,-200.0,0.000346,8]
[327859427,1716559947295,-6654.7167,0.000346,2]
[327859428,1716559947304,-6654.7167,0.000346,2]
[327859429,1716559947313,-1792.817,0.000346,2]
[327859430,1716559947323,-1792.817,0.000346,2]
[327859431,1716559947553,-2833.1289,0.000346,2]
[327859432,1716559947582,-2833.1289,0.000346,2]
[327859433,1716559947592,-150.0,0.00034613,7]
[327859434,1716559947602,-150.0,0.00034613,7]
[327859435,1716559947611,-515.40163863,0.00034619,30]
[327859436,1716559947622,-33848.33,0.0003464,6]
[327859437,1716559947631,-11126.47,0.0003464,6]
[327859438,1716559947641,-127302.58,0.0003464,6]
[327859439,1716559947651,-33200.54,0.0003464,6]
[327859440,1716559947660,-301.16,0.00034644,2]
[327859441,1716559947671,-150.48,0.00034658,2]
[327859442,1716559947680,-150.0,0.00034684,120]
[327859443,1716559947689,-3723.47110887,0.00034692,7]
[327859444,1716559947699,-1147.77650553,0.00034692,7]
[327859445,1716559947710,-246.94781801,0.00034692,7]
[327859446,1716559947719,-695.66031416,0.00034692,7]
[327859447,1716559947728,-65390.76714591,0.000347,2]
[327859448,1716559947738,-150.0,0.00034701,7]
[327859449,1716559947747,-745.0,0.00034704,2]
[327859450,1716559947757,-645.51973012,0.00034704,2]
[327859451,1716559947767,-1025.90960997,0.00034704,2]
[327859452,1716559947776,-586.0,0.00034704,2]
[327859453,1716559947786,-468.87806261,0.00034704,2]
[327859454,1716559947795,-150.0,0.00034722,120]
[327859455,1716559947804,-1490.87,0.00034735,30]
[327859456,1716559947814,-1490.87,0.00034735,30]
[327859457,1716559947824,-150.0,0.0003479,7]
[327859458,1716559947834,-150.0,0.0003479,7]
[327859459,1716559947844,-415.49,0.00034815,2]
[327859460,1716559947853,-404.0,0.00034879,2]
[327859461,1716559947862,-150.0,0.00034879,7]
[327859462,1716559947872,-1002.49962363,0.0003489,10]
[327859463,1716559947881,-37788.35074673,0.000349,30]
[327859464,1716559947890,-150.0,0.000349,120]
[327859465,1716559947900,-5161.61457896,0.000349,15]
[327859466,1716559947909,-153.11,0.000349,2]
[327859467,1716559947918,-153.11,0.000349,2]
[327859468,1716559947928,-153.11,0.000349,2]
[327859469,1716559947938,-153.11,0.000349,2]
[327859470,1716559947948,-153.11,0.000349,2]
[327859471,1716559947960,-153.11,0.000349,2]
[327859472,1716559947969,-153.11,0.000349,2]
[327859473,1716559947979,-153.11,0.000349,2]
[327859474,1716559947988,-153.11,0.000349,2]
[327859475,1716559947998,-153.11,0.000349,2]
[327859476,1716559948007,-153.11,0.000349,2]
[327859477,1716559948017,-153.11,0.000349,2]
[327859478,1716559948031,-153.11,0.000349,2]